bitfinex/quotes_BTCUSD_20230403
["timestamp","ask_amount","ask_price","bid_price","bid_amount"]
[1680552588452,0.24080503,27989.0,27982.0,0.1585]
[1680552588673,0.24780503,27989.0,27983.0,0.001]
[1680552588906,0.023416,27988.0,27982.0,0.0085]
[1680552589134,0.15797481,27988.0,27982.0,0.0085]
[1680552589367,0.15797481,27988.0,27981.0,0.461]
[1680552589368,0.01780671,27987.0,27981.0,0.29502141]
[1680552589604,0.16000352,27987.0,27981.0,0.29502141]
[1680552589820,0.16000352,27987.0,27983.0,0.001]
[1680552590049,0.04207671,27986.0,27983.0,0.001]
[1680552590290,0.01810671,27986.0,27983.0,0.001]
[1680552590524,0.0003,27987.0,27981.0,0.29502141]
[1680552590740,0.14219681,27987.0,27981.0,0.29502141]
[1680552591221,0.007,27986.0,27983.0,0.001]
[1680552591465,0.016379,27986.0,27981.0,0.29502141]
[1680552591700,0.43981056,27985.0,27981.0,0.006]
[1680552591938,0.040194,27984.0,27980.0,0.001]
[1680552592134,0.15797681,27984.0,27983.0,0.001]
[1680552592428,0.039692,27984.0,27983.0,0.001]
[1680552592652,0.039692,27984.0,27980.0,0.001]
[1680552592653,0.09707779,27984.0,27980.0,0.001]
[1680552592903,0.023112,27983.0,27980.0,0.001]
[1680552593121,0.039493,27983.0,27980.0,0.001]
[1680552593341,0.016381,27983.0,27980.0,0.001]
[1680552593566,0.016081,27983.0,27981.0,0.006]
[1680552593782,0.016081,27983.0,27980.0,0.001]
[1680552594016,0.017081,27983.0,27980.0,0.014]
[1680552594233,0.016381,27984.0,27980.0,0.001]
[1680552594424,0.001,27983.0,27981.0,0.006]
[1680552594681,0.016081,27983.0,27980.0,0.001]
[1680552594891,0.016381,27984.0,27980.0,0.014]
[1680552595105,0.001,27983.0,27980.0,0.014]
[1680552595358,0.016381,27984.0,27980.0,0.001]
[1680552595359,0.0003,27984.0,27980.0,0.001]
[1680552595584,0.0003,27984.0,27981.0,0.006]
[1680552595585,0.001,27983.0,27981.0,0.006]
[1680552597370,0.0003,27986.0,27981.0,0.35]
[1680552597813,0.001,27984.0,27981.0,0.356]
[1680552598702,0.05487739,27986.0,27981.0,0.35]
[1680552598923,0.05487739,27986.0,27980.0,0.44492088]
[1680552599191,0.14219681,27986.0,27980.0,0.09492088]
[1680552599430,0.15827581,27986.0,27980.0,0.09492088]
[1680552599666,0.15927581,27986.0,27980.0,0.22269438]
[1680552599896,0.15827581,27986.0,27980.0,0.22269438]
[1680552600136,0.15927581,27986.0,27980.0,0.23569438]
[1680552600856,0.15927581,27986.0,27980.0,0.14899438]
[1680552601287,0.15827581,27986.0,27980.0,0.13599438]
[1680552601513,0.15927581,27986.0,27980.0,0.14199438]
[1680552601750,0.15927581,27986.0,27979.0,0.39368994]
[1680552601978,0.15927581,27986.0,27979.0,0.5984005]
[1680552602647,0.03455537,27985.0,27979.0,0.5984005]
[1680552602872,0.03455537,27985.0,27978.0,0.1824082]
[1680552602873,0.27793218,27985.0,27978.0,0.1824082]
[1680552603142,0.02426,27984.0,27979.0,0.011]
[1680552603366,0.18223781,27984.0,27979.0,0.011]
[1680552603599,0.024284,27983.0,27979.0,0.011]
[1680552603801,0.040365,27983.0,27978.0,0.1824082]
[1680552604025,0.15797781,27983.0,27978.0,0.1934082]
[1680552604300,0.15797781,27983.0,27978.0,0.1824082]
[1680552604527,0.03369439,27982.0,27978.0,0.1824082]
[1680552605440,0.016381,27984.0,27979.0,0.0085]
[1680552605692,0.001,27983.0,27979.0,0.0145]
[1680552605927,0.016081,27984.0,27978.0,0.1824082]
[1680552606160,0.001,27982.0,27978.0,0.1934082]
[1680552606396,0.001,27982.0,27979.0,0.13695363]
[1680552606627,0.001,27982.0,27980.0,0.385799]
[1680552606855,0.016379,27987.0,27981.0,0.035421]
[1680552607090,0.001,27983.0,27979.0,0.16082363]
[1680552607335,0.0003,27986.0,27980.0,0.034574]
[1680552607564,0.001,27982.0,27979.0,0.16082363]
[1680552607788,0.0003,27986.0,27980.0,0.034603]
[1680552608022,0.0003,27986.0,27979.0,0.30482363]
[1680552608258,0.14219681,27986.0,27979.0,0.15482363]
[1680552608713,0.14219681,27986.0,27981.0,0.001]
[1680552608939,0.0003,27986.0,27979.0,0.13695363]
[1680552609174,0.14319681,27986.0,27979.0,0.51553419]
[1680552609378,0.14219681,27986.0,27979.0,0.50953419]
[1680552609646,0.14219681,27986.0,27981.0,0.001]
[1680552609647,0.16627581,27986.0,27981.0,0.001]
[1680552609874,0.016379,27986.0,27979.0,0.49166419]
[1680552610101,0.14289681,27986.0,27979.0,0.49766419]
[1680552610326,0.14319681,27986.0,27979.0,0.49766419]
[1680552610554,0.14219681,27986.0,27979.0,0.49166419]
[1680552610788,0.15019681,27986.0,27981.0,0.001]
[1680552611022,0.0083,27986.0,27981.0,0.001]
[1680552611246,0.008,27986.0,27981.0,0.001]
[1680552611704,0.016379,27987.0,27980.0,0.08562381]
[1680552611971,0.001,27986.0,27981.0,0.0085]
[1680552612202,0.0093,27986.0,27982.0,0.033177]
[1680552612434,0.0083,27986.0,27981.0,0.0095]
[1680552612665,0.016379,27987.0,27981.0,0.0085]
[1680552612881,0.024095,27986.0,27981.0,0.0085]
[1680552613099,0.024395,27986.0,27981.0,0.0085]
[1680552614034,0.0003,27986.0,27981.0,0.0085]
[1680552614278,0.0003,27986.0,27982.0,0.40934419]
[1680552614507,0.0083,27986.0,27983.0,0.035552]
[1680552614734,0.008,27986.0,27981.0,0.11299281]
[1680552614969,0.14989681,27986.0,27981.0,0.09512381]
[1680552615176,0.0003,27986.0,27983.0,0.0159]
[1680552615435,0.008,27986.0,27983.0,0.0159]
[1680552615676,0.016378,27988.0,27983.0,0.0159]
[1680552615897,0.001,27986.0,27983.0,0.0159]
[1680552616365,0.49660737,27986.0,27983.0,0.0159]
[1680552616609,0.085,27984.0,27979.0,0.21425744]
[1680552616852,0.62161337,27983.0,27978.0,0.08580381]
[1680552617100,0.085,27980.0,27978.0,0.08562381]
[1680552617351,0.02327,27979.0,27977.0,0.08562381]
[1680552617587,0.18124981,27979.0,27976.0,0.10670381]
[1680552617822,0.18124981,27979.0,27976.0,0.23497744]
[1680552618009,0.022866,27978.0,27976.0,0.10652381]
[1680552618484,0.016143,27979.0,27976.0,0.10652381]
[1680552618749,0.0003,27979.0,27976.0,0.10652381]
[1680552618974,0.016083,27980.0,27977.0,0.0085]
[1680552619202,0.001,27978.0,27976.0,0.11652381]
[1680552619665,0.016083,27980.0,27976.0,0.10652381]
[1680552620356,0.025143,27979.0,27976.0,0.0209]
[1680552620581,0.022386,27978.0,27976.0,0.0309]
[1680552620818,0.44011056,27980.0,27976.0,0.0209]
[1680552621047,0.022717,27979.0,27976.0,0.0309]
[1680552621279,0.0851,27980.0,27976.0,0.0209]
[1680552621501,0.001,27979.0,27976.0,0.0309]
[1680552621733,0.0003,27981.0,27976.0,0.0209]
[1680552621969,0.0003,27982.0,27976.0,0.65782637]
[1680552622205,0.40216413,27986.0,27977.0,0.48415837]
[1680552622206,0.001,27980.0,27977.0,0.48415837]
[1680552622428,0.0003,27984.0,27979.0,0.35]
[1680552622679,0.0003,27984.0,27980.0,0.043476]
[1680552622906,0.048241,27984.0,27978.0,0.4438]
[1680552623137,0.19013781,27984.0,27979.0,0.0085]
[1680552623368,0.01638,27984.0,27979.0,0.0085]
[1680552623598,0.025195,27983.0,27979.0,0.0085]
[1680552623829,0.03008,27984.0,27980.0,0.001]
[1680552624060,0.03008,27984.0,27979.0,0.0085]
[1680552624061,0.01601739,27984.0,27979.0,0.0085]
[1680552624294,0.024676,27983.0,27979.0,0.0095]
[1680552624528,0.024676,27983.0,27979.0,0.00868]
[1680552624810,0.023018,27982.0,27979.0,0.00968]
[1680552625042,0.023018,27982.0,27979.0,0.00118]
[1680552625265,0.37879156,27983.0,27979.0,0.00118]
[1680552625496,0.025414,27982.0,27979.0,0.00118]
[1680552625725,0.041495,27982.0,27979.0,0.001]
[1680552625955,0.023455,27981.0,27978.0,0.00018]
[1680552626186,0.023455,27981.0,27979.0,0.001]
[1680552626670,0.39424756,27981.0,27979.0,0.001]
[1680552626902,0.022906,27980.0,27979.0,0.001]
[1680552627139,0.37761656,27980.0,27977.0,0.00018]
[1680552627388,0.023412,27979.0,27976.0,0.02108]
[1680552627626,0.33958481,27978.0,27976.0,0.02108]
[1680552627859,0.46386956,27977.0,27976.0,0.0209]
[1680552628087,0.49776027,27977.0,27976.0,0.0209]
[1680552629028,0.49776027,27977.0,27976.0,0.0229]
[1680552629264,0.04246571,27977.0,27976.0,0.0209]
[1680552629492,0.051659,27977.0,27976.0,0.0209]
[1680552629717,0.024659,27977.0,27976.0,0.0209]
[1680552629947,0.42245356,27977.0,27976.0,0.0209]
[1680552630176,0.42417627,27977.0,27976.0,0.0209]
[1680552631091,0.06946571,27977.0,27976.0,0.0209]
[1680552631331,0.08554971,27977.0,27976.0,0.0209]
[1680552631794,0.44026027,27977.0,27976.0,0.0209]
[1680552632247,0.42417627,27977.0,27976.0,0.0209]
[1680552632493,0.49900756,27977.0,27976.0,0.0209]
[1680552633184,0.48120085,27977.0,27976.0,0.0209]
[1680552633637,0.46511685,27977.0,27976.0,0.0209]
[1680552635050,0.46510285,27977.0,27976.0,0.0209]
[1680552635275,0.48118685,27977.0,27976.0,0.0209]
[1680552635499,0.56638685,27977.0,27976.0,0.0209]
[1680552635732,0.94068685,27977.0,27976.0,0.0209]
[1680552636191,1.03800234,27977.0,27976.0,0.0209]
[1680552636866,0.95280234,27977.0,27976.0,0.0209]
[1680552637537,0.95280234,27977.0,27976.0,0.01504641]
[1680552638453,0.95280234,27977.0,27976.0,0.00924846]
[1680552638699,1.42320234,27977.0,27976.0,0.00924846]
[1680552639184,1.39629234,27977.0,27976.0,0.00924846]
[1680552639414,1.74690234,27977.0,27976.0,0.00349926]
[1680552640595,0.7243,27976.0,27975.0,0.0209]
[1680552640826,1.94537456,27976.0,27975.0,0.0209]
[1680552641050,3.23221332,27976.0,27971.0,0.01]
[1680552641302,1.22231056,27972.0,27971.0,0.01]
[1680552641535,1.62458143,27972.0,27971.0,0.01]
[1680552641763,1.78268462,27972.0,27971.0,0.01]
[1680552642450,2.0062405,27972.0,27971.0,0.01]
[1680552642890,2.05104721,27972.0,27971.0,0.01]
[1680552643122,1.80968462,27972.0,27971.0,0.01]
[1680552643370,2.02298462,27972.0,27971.0,0.0001]
[1680552643612,2.02298462,27972.0,27966.0,0.00268183]
[1680552643864,1.22301056,27967.0,27966.0,0.00268183]
[1680552644109,1.80180037,27967.0,27966.0,0.00268183]
[1680552644357,1.65990356,27967.0,27966.0,0.00268183]
[1680552644591,1.33650356,27967.0,27966.0,0.00268183]
[1680552645046,1.36350356,27967.0,27966.0,0.00268183]
[1680552645267,1.54835362,27967.0,27966.0,0.00268183]
[1680552645490,1.33449085,27967.0,27965.0,0.0209]
[1680552645725,0.783201,27966.0,27965.0,0.0209]
[1680552645956,1.15400156,27966.0,27965.0,0.0209]
[1680552646428,1.50400156,27966.0,27965.0,0.0209]
[1680552646662,1.73400293,27966.0,27965.0,0.01530347]
[1680552646919,1.73400293,27966.0,27965.0,0.01030347]
[1680552647625,1.76100293,27966.0,27965.0,0.00473142]
[1680552648113,0.5876,27964.0,27960.0,0.02108]
[1680552648357,1.22351056,27961.0,27960.0,0.0209]
[1680552648581,1.92328221,27961.0,27960.0,0.0209]
[1680552648821,0.85007056,27961.0,27960.0,0.0209]
[1680552649082,0.02426,27961.0,27960.0,0.0209]
[1680552649321,0.0848,27965.0,27960.0,0.0159]
[1680552649558,0.024906,27964.0,27960.0,0.0159]
[1680552649781,0.0852,27962.0,27960.0,0.0159]
[1680552650013,0.38633156,27961.0,27960.0,0.0159]
[1680552650265,0.37781156,27961.0,27960.0,0.0159]
[1680552650491,0.023101,27961.0,27960.0,0.0159]
[1680552651179,0.027,27961.0,27960.0,0.0159]
[1680552651406,0.0852,27965.0,27960.0,0.0159]
[1680552651646,0.027,27961.0,27960.0,0.0159]
[1680552651869,0.35471056,27964.0,27960.0,0.0159]
[1680552652109,0.38171056,27961.0,27959.0,0.0209]
[1680552652349,0.242396,27960.0,27955.0,0.4381]
[1680552652575,0.0852,27957.0,27955.0,0.4381]
[1680552652828,0.69157837,27956.0,27954.0,0.00018]
[1680552653038,0.02451,27955.0,27950.0,0.43358]
[1680552653276,0.0852,27951.0,27950.0,0.43346]
[1680552653478,0.108181,27951.0,27950.0,0.00018]
[1680552653742,0.108181,27951.0,27949.0,0.0209]
[1680552653968,0.024972,27950.0,27949.0,0.0209]
[1680552654195,0.022283,27950.0,27949.0,0.0209]
[1680552654434,0.0003,27951.0,27949.0,0.0209]
[1680552654630,0.38171056,27951.0,27949.0,0.0209]
[1680552654860,0.023519,27950.0,27949.0,0.0209]
[1680552655129,0.016099,27952.0,27949.0,0.0209]
[1680552655387,0.0003,27953.0,27949.0,0.0209]
[1680552655388,0.37967356,27951.0,27949.0,0.0209]
[1680552655609,0.01780671,27956.0,27950.0,0.119167]
[1680552655851,0.032695,27964.0,27951.0,0.58422]
[1680552656095,0.016094,27960.0,27952.0,0.35]
[1680552656340,0.35471056,27959.0,27952.0,0.35]
[1680552656573,0.63307751,27959.0,27952.0,0.00018]
[1680552656804,0.085,27956.0,27952.0,0.00018]
[1680552657052,0.0852,27954.0,27951.0,0.4643]
[1680552657258,0.039728,27953.0,27951.0,0.4623]
[1680552657519,0.025915,27952.0,27951.0,0.4623]
[1680552657752,0.025915,27952.0,27951.0,0.00018]
[1680552657984,0.09025736,27952.0,27949.0,0.0209]
[1680552658215,0.46323156,27951.0,27949.0,0.0209]
[1680552658483,0.0209,27949.0,27947.0,0.41509464]
[1680552658732,1.00783537,27948.0,27946.0,0.00018]
[1680552658974,0.3743,27946.0,27938.0,0.73448]
[1680552659246,0.92214437,27945.0,27939.0,0.35]
[1680552659476,0.482915,27944.0,27939.0,0.00018]
[1680552659700,0.482915,27944.0,27938.0,0.42448]
[1680552659701,0.85372856,27944.0,27938.0,0.42448]
[1680552659931,0.99982602,27944.0,27938.0,0.42448]
[1680552660165,0.85423856,27944.0,27938.0,0.42448]
[1680552660393,0.47993856,27944.0,27938.0,0.8358808]
[1680552660634,0.47993856,27944.0,27938.0,0.42448]
[1680552660874,0.50693856,27944.0,27938.0,0.42448]
[1680552661577,1.18123856,27944.0,27943.0,0.0219]
[1680552661869,1.23943856,27944.0,27943.0,0.0219]
[1680552662156,0.63708246,27944.0,27943.0,0.0219]
[1680552662433,0.70582556,27944.0,27943.0,0.0219]
[1680552662719,0.024625,27944.0,27943.0,0.0219]
[1680552663068,0.42192856,27944.0,27943.0,0.0219]
[1680552663271,0.39492856,27944.0,27943.0,0.0219]
[1680552663507,0.50321292,27944.0,27943.0,0.0219]
[1680552663736,0.47621292,27944.0,27943.0,0.0219]
[1680552663958,0.82621292,27944.0,27943.0,0.0219]
[1680552664215,0.54612441,27952.0,27943.0,0.0219]
[1680552664216,0.27159008,27946.0,27943.0,0.45582096]
[1680552664407,0.71948523,27946.0,27944.0,0.399903]
[1680552664683,0.27180008,27946.0,27944.0,0.35480948]
[1680552664916,0.00021,27948.0,27944.0,0.35498948]
[1680552665156,0.35471056,27951.0,27944.0,0.35498948]
[1680552665448,0.015582,27950.0,27944.0,0.35348948]
[1680552665728,0.05170086,27945.0,27944.0,0.35648948]
[1680552665959,0.06871486,27945.0,27944.0,0.35348948]
[1680552666192,0.05170086,27945.0,27944.0,0.70820004]
[1680552666427,0.05170086,27945.0,27944.0,0.00018]
[1680552666650,0.032952,27945.0,27943.0,0.0219]
[1680552666909,0.01635,27944.0,27943.0,0.0219]
[1680552667614,0.01780671,27944.0,27943.0,0.0219]
[1680552667846,0.03491971,27944.0,27943.0,0.0219]
[1680552668090,0.39182356,27944.0,27943.0,0.0219]
[1680552668322,0.037113,27944.0,27943.0,0.02208]
[1680552668562,0.037113,27944.0,27943.0,0.0219]
[1680552669025,0.39182356,27944.0,27943.0,0.0219]
[1680552669254,0.40792656,27944.0,27943.0,0.02202]
[1680552669460,0.4571129,27944.0,27943.0,0.02202]
[1680552669945,0.6479416,27944.0,27943.0,0.02196]
[1680552670180,1.0348515,27944.0,27943.0,0.0219]
[1680552670895,0.06569999,27942.0,27941.0,0.0276378]
[1680552671106,1.06103555,27942.0,27941.0,0.02728186]
[1680552671386,1.07884226,27942.0,27941.0,0.02728186]
[1680552671624,1.37884226,27942.0,27941.0,0.02728186]
[1680552671871,1.37884226,27942.0,27941.0,1.86e-06]
[1680552672103,1.87068916,27942.0,27941.0,1.86e-06]
[1680552672576,1.91984944,27942.0,27938.0,0.028618]
[1680552672802,0.86481056,27939.0,27938.0,0.028618]
[1680552673036,1.15599556,27939.0,27938.0,0.028618]
[1680552673274,1.45599556,27939.0,27938.0,0.028618]
[1680552673504,1.73330088,27939.0,27938.0,0.0237281]
[1680552673747,1.52270132,27939.0,27938.0,0.0237281]
[1680552673978,1.54970132,27939.0,27938.0,0.0237281]
[1680552674412,1.54970132,27939.0,27938.0,0.01888253]
[1680552674979,1.38863632,27939.0,27938.0,0.01888253]
[1680552675459,1.38863632,27939.0,27938.0,0.01405899]
[1680552675695,1.57862735,27939.0,27938.0,0.01405899]
[1680552675928,1.80489908,27939.0,27938.0,0.01405899]
[1680552676409,1.50489908,27939.0,27938.0,0.01405899]
[1680552676652,1.50489908,27939.0,27938.0,0.00905218]
[1680552676653,1.80489908,27939.0,27938.0,0.00905218]
[1680552676893,1.80489908,27939.0,27938.0,2.18e-06]
[1680552677634,1.78709237,27939.0,27932.0,0.0209]
[1680552677868,0.1368,27933.0,27932.0,0.0209]
[1680552678104,0.62121956,27933.0,27932.0,0.0209]
[1680552678585,0.68674588,27933.0,27932.0,0.0209]
[1680552679323,0.71374588,27933.0,27932.0,0.0209]
[1680552679859,0.64930688,27933.0,27932.0,0.0209]
[1680552680108,0.09166161,27933.0,27932.0,0.0209]
[1680552680370,0.46248117,27933.0,27932.0,0.0209]
[1680552680602,0.10777061,27933.0,27932.0,0.0209]
[1680552680840,0.12557732,27933.0,27932.0,0.0209]
[1680552681037,0.14601978,27933.0,27932.0,0.0209]
[1680552681302,0.12557732,27933.0,27932.0,0.0209]
[1680552682982,0.48049788,27933.0,27927.0,0.4328]
[1680552683217,0.15922781,27932.0,27927.0,0.4328]
[1680552683452,0.032585,27931.0,27927.0,0.4278]
[1680552683688,0.032585,27931.0,27926.0,0.02262441]
[1680552683689,0.016404,27930.0,27926.0,0.02262441]
[1680552683944,0.1357,27928.0,27926.0,0.02262441]
[1680552684180,0.033012,27927.0,27926.0,0.02262441]
[1680552684661,0.05081871,27927.0,27926.0,0.02112441]
[1680552685136,0.03391971,27927.0,27926.0,0.02112441]
[1680552685371,0.05048771,27927.0,27926.0,0.02112441]
[1680552685572,0.05748771,27927.0,27926.0,0.02112441]
[1680552685822,0.039681,27927.0,27926.0,0.02112441]
[1680552686292,0.05748771,27927.0,27926.0,0.02112441]
[1680552687708,0.05048771,27927.0,27926.0,0.02112441]
[1680552687944,0.07748771,27927.0,27926.0,0.02112441]
[1680552688176,0.05048771,27927.0,27926.0,0.02112441]
[1680552688409,0.07748771,27927.0,27926.0,0.02112441]
[1680552688838,0.07736586,27927.0,27926.0,0.02112441]
[1680552689840,0.05036586,27927.0,27926.0,0.02112441]
[1680552690338,0.18716586,27927.0,27926.0,0.02112441]
[1680552690565,1.05807323,27927.0,27926.0,0.02112441]
[1680552690793,1.78747549,27927.0,27921.0,0.0209]
[1680552691032,0.1358,27923.0,27921.0,0.0209]
[1680552691274,0.38687456,27922.0,27921.0,0.0209]
[1680552691535,0.41645714,27921.0,27917.0,0.00018]
[1680552691777,0.1363,27918.0,27909.0,0.0209]
[1680552692033,0.1363,27918.0,27899.0,0.15]
[1680552692034,0.819,27910.0,27902.0,6e-05]
[1680552692280,0.00845457,27906.0,27892.0,0.0015]
[1680552692524,0.00845457,27906.0,27890.0,0.00034222]
[1680552692525,0.36323612,27899.0,27896.0,0.00012]
[1680552692774,0.36323612,27899.0,27877.0,0.43295883]
[1680552692775,0.8206,27897.0,27885.0,0.0167978]
[1680552693019,0.8206,27897.0,27881.0,0.19275131]
[1680552693020,0.016132,27894.0,27881.0,0.19275131]
[1680552693274,0.5106,27882.0,27881.0,0.17391197]
[1680552693556,0.35471056,27872.0,27867.0,0.00241708]
[1680552693844,0.3743,27870.0,27866.0,100.0]
[1680552694121,0.3743,27870.0,27866.0,99.42979124]
[1680552694122,0.62721056,27867.0,27866.0,99.42979124]
[1680552694410,0.852568,27867.0,27866.0,91.72284238]
[1680552694701,16.42070315,27867.0,27866.0,51.09242832]
[1680552695242,16.42070315,27867.0,27866.0,13.66845817]
[1680552695243,11.42002299,27867.0,27866.0,13.66845817]
[1680552695245,19.31459598,27867.0,27866.0,8.70514604]
[1680552695755,24.97303376,27867.0,27866.0,1.83702006]
[1680552695757,0.17134164,27864.0,27851.0,0.00276109]
[1680552696051,2.26297298,27865.0,27800.0,0.151463]
[1680552696052,0.5114283,27825.0,27800.0,0.151463]
[1680552696554,0.5114283,27825.0,27816.0,0.0015]
[1680552696555,7.13955077,27824.0,27816.0,0.0015]
[1680552696561,7.03881807,27824.0,27816.0,0.1]
[1680552696871,7.03881807,27824.0,27800.0,0.08924026]
[1680552696872,2.7759233,27823.0,27811.0,0.17978]
[1680552697148,0.3,27834.0,27815.0,0.1362]
[1680552697429,0.3,27834.0,27816.0,0.24094808]
[1680552697430,0.01617,27829.0,27816.0,0.24094808]
[1680552697710,0.09379104,27837.0,27816.0,0.24094808]
[1680552697711,0.74998226,27835.0,27816.0,0.24094808]
[1680552697992,0.09379104,27837.0,27822.0,0.38775127]
[1680552698515,0.09379104,27837.0,27823.0,0.24094808]
[1680552698517,0.019875,27838.0,27824.0,0.35]
[1680552699395,0.019875,27838.0,27825.0,0.88535864]
[1680552699396,5e-06,27838.0,27825.0,0.88535864]
[1680552699398,5e-06,27838.0,27827.0,0.35471056]
[1680552699403,0.03231,27855.0,27825.0,0.53064808]
[1680552699404,0.17238,27850.0,27831.0,0.64861056]
[1680552699406,0.2897,27852.0,27831.0,0.64861056]
[1680552699618,0.17232,27853.0,27834.0,0.43139681]
[1680552699904,0.17232,27854.0,27837.0,0.2887]
[1680552700333,0.40240798,27851.0,27838.0,0.15039681]
[1680552700337,0.2897,27849.0,27838.0,0.14189681]
[1680552700751,0.2897,27839.0,27833.0,0.00018]
[1680552700972,0.2897,27839.0,27820.0,0.31174011]
[1680552700973,0.1,27838.0,27820.0,0.31174011]
[1680552701256,0.1,27838.0,27817.0,0.24662265]
[1680552701257,0.00148873,27831.0,27817.0,0.24662265]
[1680552701588,0.00148873,27831.0,27797.0,0.4496]
[1680552701589,0.35471056,27815.0,27802.0,0.69723897]
[1680552701915,0.35471056,27808.0,27802.0,0.35]
[1680552702152,0.35471056,27803.0,27789.0,0.2887]
[1680552702478,0.35471056,27803.0,27787.0,0.3364142]
[1680552702479,0.00036,27803.0,27787.0,0.3364142]
[1680552702484,0.29500056,27807.0,27792.0,6e-05]
[1680552702485,0.29231727,27807.0,27792.0,6e-05]
[1680552702713,0.54698,27806.0,27792.0,0.00018]
[1680552702955,0.227686,27805.0,27788.0,0.34584418]
[1680552703210,0.0085,27804.0,27788.0,0.34584418]
[1680552703489,0.014388,27800.0,27788.0,0.14189681]
[1680552703744,0.014388,27800.0,27789.0,0.14438615]
[1680552703745,0.388988,27800.0,27789.0,0.14438615]
[1680552704018,0.18118,27799.0,27789.0,0.28628296]
[1680552704296,0.043171,27796.0,27781.0,0.00012]
[1680552704576,0.043171,27796.0,27730.0,6.66e-05]
[1680552704577,0.7661,27784.0,27777.0,98.00944749]
[1680552704849,0.014397,27782.0,27777.0,97.08783407]
[1680552705283,0.763,27778.0,27777.0,96.48570371]
[1680552705572,4.36577778,27778.0,27777.0,94.88703858]
[1680552706163,2.18113375,27778.0,27777.0,94.17419856]
[1680552706168,0.148659,27778.0,27777.0,93.84288594]
[1680552706394,10.0,27782.0,27778.0,0.42923]
[1680552706679,5.73350456,27782.0,27779.0,0.14189681]
[1680552706965,0.00021,27784.0,27779.0,0.24106808]
[1680552707507,0.057545,27804.0,27782.0,0.34471056]
[1680552707511,0.00021,27795.0,27782.0,0.09905127]
[1680552707802,0.00021,27805.0,27785.0,0.49660737]
[1680552708095,0.014386,27805.0,27789.0,0.24094808]
[1680552708386,0.01780671,27800.0,27791.0,0.09905127]
[1680552709005,0.00021,27811.0,27792.0,0.59565864]
[1680552709017,0.00021,27811.0,27792.0,0.49660737]
[1680552709266,0.014385,27807.0,27793.0,0.14189681]
[1680552709499,0.05394747,27799.0,27793.0,0.14189681]
[1680552709736,0.05394747,27799.0,27780.0,0.00012]
[1680552709737,0.043168,27798.0,27787.0,0.38119411]
[1680552709963,0.216118,27798.0,27787.0,0.38119411]
[1680552710457,0.47274,27797.0,27789.0,0.14450147]
[1680552710656,0.47274,27797.0,27787.0,0.00018]
[1680552710657,0.489407,27797.0,27791.0,0.3945808]
[1680552710658,0.489407,27797.0,27787.0,0.14207681]
[1680552710659,0.316607,27797.0,27790.0,0.29746608]
[1680552710945,0.36323612,27790.0,27777.0,92.88822851]
[1680552711259,0.92416434,27789.0,27777.0,92.87967953]
[1680552711511,0.8535,27784.0,27777.0,92.87973953]
[1680552712003,0.014397,27782.0,27777.0,92.87979953]
[1680552712004,0.014397,27782.0,27777.0,92.87455702]
[1680552712287,0.02577,27781.0,27777.0,92.78349773]
[1680552712796,0.031829,27780.0,27777.0,90.16099135]
[1680552712806,0.17286,27781.0,27777.0,90.16099135]
[1680552713087,0.3,27783.0,27778.0,0.74539156]
[1680552713088,0.09055089,27783.0,27778.0,0.74539156]
[1680552713365,0.00021,27788.0,27782.0,0.35471056]
[1680552713663,0.00012,27794.0,27787.0,0.35471056]
[1680552714167,0.00012,27794.0,27783.0,0.49334127]
[1680552714168,9e-05,27795.0,27791.0,0.35471056]
[1680552714170,0.25251684,27819.0,27791.0,0.35471056]
[1680552714171,0.17268,27804.0,27791.0,0.35471056]
[1680552714462,0.028757,27819.0,27792.0,0.040053]
[1680552714463,0.00021,27809.0,27792.0,0.040053]
[1680552714740,0.14189681,27808.0,27798.0,0.17986]
[1680552715209,0.17974,27817.0,27798.0,6e-05]
[1680552715250,0.014382,27812.0,27798.0,0.00018]
[1680552715448,0.06051386,27807.0,27796.0,0.09923127]
[1680552715730,0.06051386,27807.0,27795.0,0.00018]
[1680552715731,0.14722966,27806.0,27795.0,0.00018]
[1680552716003,0.14722966,27806.0,27793.0,6e-05]
[1680552716004,0.043161,27803.0,27793.0,6e-05]
[1680552716295,0.043161,27803.0,27790.0,0.01954266]
[1680552716296,0.02310001,27799.0,27790.0,0.01954266]
[1680552716811,0.15289881,27798.0,27781.0,0.35]
[1680552717110,0.31457681,27798.0,27782.0,0.43209056]
[1680552717384,0.17268,27797.0,27782.0,0.35489056]
[1680552717663,0.014391,27795.0,27783.0,0.35]
[1680552717944,0.14189681,27794.0,27783.0,0.00018]
[1680552718233,0.14189681,27794.0,27784.0,0.35471056]
[1680552718784,0.14189681,27794.0,27784.0,0.35489056]
[1680552718787,0.01780671,27793.0,27784.0,0.35489056]
[1680552719064,0.02310001,27799.0,27788.0,0.35471056]
[1680552719065,0.02331001,27799.0,27788.0,0.35471056]
[1680552719455,0.02331001,27799.0,27789.0,0.50219783]
[1680552719456,0.02310001,27799.0,27789.0,0.50219783]
[1680552719461,0.16499682,27799.0,27790.0,0.35]
[1680552719737,0.16499682,27799.0,27791.0,0.40041656]
[1680552719738,0.05577267,27792.0,27791.0,0.40041656]
[1680552720020,0.05577267,27792.0,27791.0,0.073306]
[1680552720301,0.05577267,27792.0,27791.0,0.045886]
[1680552720636,0.14189681,27792.0,27791.0,0.045886]
[1680552720839,0.16762181,27792.0,27789.0,0.00018]
[1680552721090,0.15291081,27791.0,27783.0,6e-05]
[1680552721341,0.043182,27789.0,27780.0,0.00018]
[1680552721599,0.3743,27786.0,27778.0,6e-05]
[1680552721912,0.3743,27786.0,27777.0,90.16099135]
[1680552721913,0.17999,27781.0,27777.0,90.16099135]
[1680552722089,0.14189681,27780.0,27778.0,0.048505]
[1680552722338,0.14189681,27780.0,27778.0,0.06061328]
[1680552722582,0.014398,27780.0,27779.0,0.047966]
[1680552722819,0.00021,27782.0,27779.0,0.047966]
[1680552723060,0.1728,27782.0,27779.0,0.047966]
[1680552723304,0.00021,27783.0,27778.0,0.36179253]
[1680552723537,0.00021,27783.0,27777.0,90.16117135]
[1680552723538,0.00021,27783.0,27779.0,0.047033]
[1680552723809,0.00021,27783.0,27778.0,0.049897]